bitfinex-derivatives/quotes_ETHF0:USTF0_20250917
["timestamp","ask_amount","ask_price","bid_price","bid_amount"]
[1758120486510,1.25816919,4485.4,4485.3,1.18209608]
[1758120486708,0.96446919,4485.4,4485.3,1.18209608]
[1758120487212,1.27426919,4485.4,4485.3,1.18209608]
[1758120488211,1.24746919,4485.4,4485.3,0.44589608]
[1758120488410,1.47546919,4485.4,4485.3,1.18199608]
[1758120490602,1.47546919,4485.4,4485.3,0.76779608]
[1758120490812,1.47546919,4485.4,4485.3,0.44589608]
[1758120491310,1.47546919,4485.4,4485.3,0.98029608]
[1758120491908,1.47546919,4485.4,4485.3,0.65839608]
[1758120492909,1.47546919,4485.4,4485.3,1.18199608]
[1758120493109,1.47546919,4485.4,4485.3,0.98029608]
[1758120493307,1.47546919,4485.4,4485.3,0.44589608]
[1758120494614,1.24746919,4485.4,4485.3,0.44589608]
[1758120494814,1.47546919,4485.4,4485.3,0.44589608]
[1758120495016,1.47546919,4485.4,4485.3,0.98029608]
[1758120495610,1.24746919,4485.4,4485.3,1.18199608]
[1758120495804,0.75716919,4485.4,4485.3,1.18199608]
[1758120496209,0.96276919,4485.4,4485.3,1.18199608]
[1758120496610,1.27256919,4485.4,4485.3,1.18199608]
[1758120498218,1.04456919,4485.4,4485.3,1.18199608]
[1758120498514,0.52916919,4485.4,4485.3,1.18199608]
[1758120498716,0.75716919,4485.4,4485.3,1.18199608]
[1758120498906,0.52916919,4485.4,4485.3,1.18199608]
[1758120499111,0.52916919,4485.4,4485.3,5.40494607]
[1758120499811,0.52916919,4485.4,4485.3,5.18199608]
[1758120500011,3.2078,4486.1,4486.0,0.4142]
[1758120500211,3.2078,4486.1,4486.0,0.6146]
[1758120500212,3.7456,4486.1,4486.0,0.6146]
[1758120500515,3.9512,4486.1,4486.0,0.4142]
[1758120501022,3.9512,4486.1,4486.0,0.6146]
[1758120501818,3.9512,4486.1,4486.0,0.4142]
[1758120502817,4.1524,4486.1,4486.0,0.4142]
[1758120503021,0.5288,4485.5,4485.4,0.2125]
[1758120503212,0.8386,4485.5,4485.4,0.2125]
[1758120503713,0.8386,4485.5,4485.4,0.4142]
[1758120504518,0.7166,4485.4,4485.3,0.44589608]
[1758120505506,3.5176,4485.6,4485.3,0.86009608]
[1758120505712,0.228,4485.5,4485.3,0.86009608]
[1758120506212,0.5378,4485.5,4485.4,0.6146]
[1758120507522,0.3098,4485.5,4485.4,0.6146]
[1758120508215,0.3098,4485.9,4485.4,4.4142]
[1758120508412,3.2078,4486.7,4486.5,0.2004]
[1758120508618,0.4336,4486.6,4486.5,0.6146]
[1758120508920,0.3098,4486.9,4486.2,3.2078]
[1758120509122,0.3098,4486.9,4486.8,0.6146]
[1758120509822,0.5154,4486.9,4486.8,0.6146]
[1758120510217,0.3098,4486.9,4486.8,0.6146]
[1758120510423,0.5154,4486.9,4486.8,0.4142]
[1758120510619,0.7166,4486.9,4486.8,0.4142]
[1758120511018,0.9446,4486.9,4486.8,0.2125]
[1758120512321,0.9446,4486.9,4486.2,3.2078]
[1758120512515,0.5154,4486.3,4486.2,3.622]
[1758120513419,0.3098,4486.3,4486.2,3.8224]
[1758120514517,0.1199,4487.0,4486.2,7.8224]
[1758120514721,0.7434,4486.9,4486.8,0.4142]
[1758120514931,0.9446,4486.9,4486.8,0.4142]
[1758120515320,0.7166,4486.9,4486.8,0.4142]
[1758120515625,0.3098,4487.1,4487.0,0.6146]
[1758120515824,0.5154,4487.1,4487.0,0.6146]
[1758120516223,0.5154,4487.1,4487.0,0.4142]
[1758120516435,0.7166,4487.1,4487.0,0.4142]
[1758120518130,0.5132,4486.4,4486.3,3.4083]
[1758120518329,0.7079,4486.4,4486.3,3.4083]
[1758120518834,0.7079,4486.4,4486.3,3.6054]
[1758120519335,0.3123,4486.8,4486.5,0.5981]
[1758120519532,0.3123,4486.8,4486.7,0.5981]
[1758120520833,0.507,4486.8,4486.7,0.3976]
[1758120521738,0.507,4486.8,4486.7,0.5981]
[1758120522828,0.3123,4486.8,4486.7,0.5981]
[1758120523327,0.4291,4487.0,4486.9,0.5981]
[1758120523529,0.3123,4487.0,4486.9,0.5981]
[1758120523729,0.8247,4487.0,4486.9,0.3976]
[1758120524431,0.3123,4487.0,4486.9,0.5981]
[1758120526233,0.122,4487.5,4486.9,0.5981]
[1758120526434,0.122,4487.5,4487.4,0.3976]
[1758120526631,0.3123,4487.5,4487.4,0.5981]
[1758120527526,0.3123,4487.7,4487.5,0.2005]
[1758120527731,0.507,4487.7,4487.6,0.5981]
[1758120527930,0.507,4487.7,4487.0,0.3038]
[1758120527931,0.7079,4487.7,4487.1,0.2005]
[1758120528134,0.6238,4487.5,4487.4,0.3976]
[1758120528333,0.6238,4487.5,4487.4,0.5981]
[1758120530127,0.4291,4487.0,4486.9,0.2005]
[1758120530333,0.5124,4487.0,4486.8,3.2078]
[1758120530639,0.7079,4486.9,4486.8,3.4083]
[1758120530937,0.7079,4486.9,4486.8,3.6054]
[1758120531238,0.7079,4486.9,4486.8,3.2078]
[1758120533332,4.9349,4486.9,4486.7,0.1783]
[1758120533637,3.9157,4486.8,4486.7,0.1783]
[1758120534034,3.9157,4486.8,4485.8,3.2078]
[1758120537342,3.9157,4486.8,4486.5,0.1783]
[1758120538144,3.6034,4486.8,4485.8,3.2078]
[1758120538346,0.6862,4485.9,4485.8,3.6067]
[1758120539747,0.6862,4485.9,4485.8,3.9278]
[1758120540353,0.227,4486.1,4485.8,3.9278]
[1758120540547,0.421,4486.1,4486.0,0.72]
[1758120541143,0.7169,4486.1,4486.0,0.72]
[1758120541544,0.9132,4486.1,4486.0,0.72]
[1758120541953,0.4247,4486.0,4485.3,3.65369608]
[1758120542148,0.194,4485.5,4485.4,0.72]
[1758120542344,0.815,4485.5,4485.4,0.3989]
[1758120542654,0.815,4485.5,4485.4,0.194]
[1758120543455,0.815,4485.5,4485.4,0.72]
[1758120543653,0.815,4485.5,4485.4,0.3989]
[1758120543849,0.815,4485.5,4485.3,3.65369608]
[1758120543850,0.2959,4485.4,4485.3,3.65369608]
[1758120544242,0.6862,4485.4,4485.3,0.44589608]
[1758120544651,0.6862,4485.4,4485.3,0.63989608]
[1758120545750,0.6862,4485.4,4485.3,0.44589608]
[1758120547254,0.6862,4485.4,4485.3,0.63989608]
[1758120547564,3.2078,4485.8,4485.7,0.3194]
[1758120547752,3.2078,4485.8,4485.7,0.7383]
[1758120547958,0.3558,4486.0,4485.8,0.3194]
[1758120548257,0.6629,4486.0,4485.9,0.7383]
[1758120548463,0.5341,4486.0,4485.9,0.7383]
[1758120549262,3.2078,4486.6,4485.9,0.7383]
[1758120549458,0.322,4486.3,4485.5,3.3224]
[1758120549662,0.5341,4486.3,4486.2,0.4189]
[1758120549862,0.9672,4486.3,4486.2,0.4189]
[1758120550159,0.322,4485.9,4485.5,3.2078]
[1758120550363,0.7402,4485.6,4485.5,3.4212]
[1758120550665,0.7402,4485.6,4485.5,3.6267]
[1758120551054,0.7402,4485.6,4485.5,3.9461]
[1758120551253,0.322,4485.6,4485.5,3.9461]
[1758120551459,0.7402,4486.3,4486.2,0.7383]
[1758120553469,0.7402,4486.3,4486.2,0.4189]
[1758120553762,0.7402,4486.3,4485.5,3.3224]
[1758120553966,0.7402,4485.6,4485.5,3.6267]
[1758120555464,0.4182,4485.4,4485.3,0.65929608]
[1758120555664,0.7402,4485.4,4485.3,0.65929608]
[1758120556271,0.7402,4485.4,4485.3,0.44589608]
[1758120556968,0.7402,4485.4,4485.3,0.65929608]
[1758120557269,0.7402,4485.4,4485.3,0.44589608]
[1758120559265,0.9672,4485.4,4485.3,0.44589608]
[1758120559865,0.7402,4484.9,4484.8,0.0222]
[1758120560267,0.9672,4484.9,4484.8,0.0222]
[1758120560468,0.7402,4484.9,4484.6,0.1783]
[1758120560668,0.9672,4484.9,4484.8,0.2134]
[1758120562471,0.9672,4484.9,4484.6,0.1783]
[1758120562772,0.9672,4484.9,4484.8,0.2134]
[1758120564472,0.7402,4484.9,4484.8,0.2134]
[1758120564666,0.9672,4484.9,4484.8,0.2134]
[1758120565466,0.1244,4484.5,4484.4,0.2134]
[1758120565670,0.5426,4484.5,4484.4,0.7383]
[1758120566071,0.8646,4484.5,4484.4,0.7383]
[1758120566264,0.7402,4484.5,4484.4,0.7383]
[1758120566466,0.5341,4484.5,4484.4,0.7383]
[1758120566672,0.322,4484.5,4484.4,0.7383]
[1758120566975,0.5341,4484.5,4484.4,0.7383]
[1758120567272,0.6585,4484.5,4484.4,0.7383]
[1758120567767,0.8646,4484.5,4484.1,0.04460127]
[1758120568365,0.8646,4484.5,4484.1,0.36400127]
[1758120568969,0.8646,4484.5,4484.4,0.2134]
[1758120571875,0.8646,4484.5,4484.4,0.4189]
[1758120573281,0.8646,4484.5,4484.4,0.2134]
[1758120577970,0.8646,4484.5,4484.1,0.04460127]
[1758120578669,0.8646,4484.5,4484.1,0.34420127]
[1758120579076,0.8646,4484.5,4484.1,0.04460127]
[1758120579577,0.8646,4484.5,4482.8,3.2078]
[1758120579578,0.1993,4483.2,4482.8,3.2078]
[1758120579877,0.7223,4482.9,4482.8,3.2078]
[1758120581374,0.9493,4482.9,4482.8,3.2078]
[1758120583277,0.7223,4482.9,4482.8,3.2078]
[1758120583474,0.9493,4482.9,4482.8,3.4042]
[1758120584271,0.9493,4482.9,4482.1,3.2078]
[1758120584478,0.3102,4482.8,4482.1,3.43089]
[1758120584781,0.3102,4482.8,4482.2,0.2996]
[1758120585376,0.5095,4482.3,4482.2,0.7087]
[1758120585783,0.7223,4482.3,4482.2,0.7087]
[1758120586283,0.5095,4482.3,4482.2,0.7087]
[1758120588786,0.3102,4482.4,4482.2,0.4091]
[1758120588981,0.3102,4482.4,4482.3,0.7087]
[1758120589186,0.5095,4482.4,4482.3,0.7087]
[1758120589387,0.7223,4482.4,4482.3,0.4091]
[1758120589681,0.7223,4482.4,4482.3,0.7087]
[1758120592380,0.7223,4482.4,4482.1,3.2078]
[1758120592381,0.4121,4482.4,4482.1,3.2078]
[1758120592688,0.7223,4482.2,4482.0,0.00661751]
[1758120592979,0.9493,4482.2,4482.0,0.00661751]
[1758120593385,0.9493,4482.2,4482.1,0.1964]
[1758120593582,0.9493,4482.2,4482.0,0.00661751]
[1758120593982,0.9493,4482.2,4482.1,0.7087]
[1758120594487,0.9493,4482.2,4482.1,0.4091]
[1758120594885,3.2078,4482.4,4482.1,0.7087]
[1758120595186,0.3102,4482.3,4482.2,0.7087]
[1758120595581,0.5095,4482.3,4482.2,0.7087]
[1758120597288,0.7223,4482.3,4482.2,0.7087]
[1758120598192,3.3316,4483.0,4482.3,0.2973]
[1758120598193,0.2995,4482.9,4482.3,0.2973]
[1758120598384,3.3316,4483.0,4482.7,0.4121]
[1758120598385,0.9472,4482.8,4482.7,0.4121]
[1758120598584,0.7202,4482.8,4482.7,0.4121]
[1758120598891,0.9472,4482.8,4482.1,0.2973]
[1758120599991,0.7202,4482.2,4482.1,0.2106]
[1758120601486,0.9472,4482.2,4482.0,0.00661751]
[1758120601791,0.7202,4482.2,4482.0,0.00661751]
[1758120601994,0.9472,4482.1,4482.0,0.00661751]
[1758120602184,0.9472,4482.1,4482.0,0.21721751]
[1758120603185,0.9472,4482.1,4482.0,0.00661751]
[1758120605281,1.51186143,4482.1,4482.0,0.00661751]
[1758120609494,1.28486143,4482.1,4482.0,0.00661751]
[1758120609690,1.51186143,4482.1,4482.0,0.00661751]
[1758120611488,1.28486143,4482.1,4482.0,0.41651751]
[1758120611688,1.51186143,4482.1,4482.0,0.73151751]
[1758120611889,1.28486143,4482.1,4482.0,0.73151751]
[1758120612091,1.05446143,4482.1,4482.0,0.73151751]
[1758120613089,0.227,4482.5,4482.0,4.50101751]
[1758120613292,0.56596013,4482.4,4482.3,0.4099]
[1758120613492,0.56596013,4482.4,4482.3,0.7249]
[1758120613693,1.05576013,4482.4,4482.3,0.7249]
[1758120614091,0.56596013,4482.4,4482.3,0.7249]
[1758120614589,0.291,4482.6,4482.3,0.7249]
[1758120614784,0.56608163,4482.5,4482.3,0.7249]
[1758120614985,0.6839,4482.9,4482.8,0.2113]
[1758120615194,1.05590918,4482.9,4482.8,0.7249]
[1758120616698,0.4898,4482.9,4482.8,0.7249]
[1758120617489,3.2078,4483.7,4482.9,0.315]
[1758120617490,0.291,4483.4,4482.9,0.315]
[1758120617695,1.05577951,4483.3,4483.2,0.7249]
[1758120618099,1.24987951,4483.3,4483.2,0.4099]
[1758120618596,1.24987951,4483.3,4482.4,3.2078]
[1758120618794,0.291,4483.2,4483.1,0.1986]
[1758120618996,0.6839,4483.2,4483.1,0.1986]
[1758120620606,0.6839,4483.2,4483.1,0.4099]
[1758120621204,0.6839,4483.2,4483.1,0.7249]
[1758120621404,0.3508,4483.5,4482.4,3.2078]
[1758120621405,0.3929,4482.8,4482.7,0.5136]
[1758120621705,0.6839,4482.8,4482.7,0.1986]
[1758120622494,0.6839,4482.8,4482.7,0.4099]
[1758120622699,0.6839,4482.8,4482.7,0.7249]
[1758120623198,0.4898,4482.8,4482.7,0.7249]
[1758120623999,0.6199,4483.4,4483.3,0.1986]
[1758120624198,0.3929,4483.4,4483.3,0.4099]
[1758120624605,0.6839,4483.4,4483.3,0.1986]
[1758120625501,0.8079,4482.5,4482.4,3.9327]
[1758120625700,0.8079,4482.5,4482.4,3.6177]
[1758120625896,0.8079,4482.5,4482.4,3.4064]
[1758120627610,0.8079,4482.5,4482.4,3.6177]
[1758120627911,0.8079,4482.5,4482.4,3.9327]
[1758120628507,0.8079,4482.5,4482.4,3.6177]
[1758120629108,0.8079,4482.5,4482.4,3.9327]
[1758120629411,0.8079,4482.5,4482.4,3.6177]
[1758120630203,0.8079,4482.5,4482.4,3.9327]
[1758120630408,0.8079,4482.5,4482.4,3.6177]
[1758120631520,0.8079,4482.5,4482.4,3.9327]
[1758120631819,0.4898,4482.5,4482.4,3.9327]
[1758120637118,0.4898,4482.5,4482.2,0.1784]
[1758120637119,0.8083,4482.5,4482.2,0.1784]
[1758120638513,0.8083,4482.5,4482.4,0.2108]
[1758120638718,0.8083,4482.5,4482.4,0.732]
[1758120639419,0.8083,4482.5,4482.4,0.4234]
[1758120639822,0.291,4482.5,4482.4,0.732]
[1758120640118,40.9238,4484.0,4482.9,0.3086]
[1758120640119,0.3069,4483.4,4482.9,0.3086]
[1758120640321,0.3069,4483.4,4483.3,0.732]
[1758120640713,1.06667769,4483.4,4483.3,0.732]
[1758120641023,0.5014,4483.4,4483.3,0.732]
[1758120641716,0.6952,4483.4,4483.3,0.732]
[1758120642324,1.26082051,4483.4,4483.3,0.732]
[1758120643411,1.26082051,4483.4,4483.3,0.4234]
[1758120644623,1.26082051,4483.4,4483.3,0.2108]
[1758120644818,1.26082051,4483.4,4482.6,0.227]
[1758120645024,0.5014,4482.7,4482.6,0.6504]
[1758120645323,0.5014,4482.7,4482.6,0.959]
[1758120645621,0.5014,4482.7,4482.6,1.18208]
[1758120645821,0.5014,4482.7,4482.6,0.959]
[1758120646521,0.6952,4482.7,4482.6,0.4378]
[1758120646923,0.6952,4482.7,4482.6,0.6504]
[1758120647223,0.1244,4483.5,4482.9,0.732]
[1758120647421,0.56567464,4483.4,4482.9,0.4234]
[1758120647719,0.56567464,4483.4,4482.6,0.227]
[1758120647720,0.3883,4483.4,4482.6,0.227]
[1758120647916,0.3883,4483.4,4483.3,0.2108]
[1758120648222,0.5014,4483.4,4483.3,0.732]
[1758120648423,0.6952,4483.4,4483.3,0.732]
[1758120648624,0.6952,4483.4,4483.3,0.4234]
[1758120649121,0.6952,4483.4,4483.3,0.2108]
[1758120649726,0.6952,4483.4,4483.3,0.4234]
[1758120651620,0.6952,4483.4,4483.3,0.2108]
[1758120651817,1.26094481,4483.4,4483.3,0.2108]
[1758120655229,0.6952,4483.4,4483.3,0.2108]
[1758120655425,0.6952,4483.4,4483.3,0.732]
[1758120655824,0.6952,4483.4,4483.3,0.4234]
[1758120656430,0.6952,4483.4,4483.3,0.2108]
[1758120657330,1.26118048,4483.4,4483.3,0.7188]
[1758120658031,0.56598048,4483.4,4483.3,3.9266]
[1758120658225,1.08018048,4483.4,4483.3,3.9266]
[1758120658425,1.28058048,4483.4,4483.3,0.422]
[1758120660434,1.28058048,4483.4,4483.1,0.1784]
[1758120660731,0.7146,4483.2,4483.1,0.1784]
[1758120660928,1.28058048,4483.2,4483.1,0.1784]
[1758120661130,1.28058048,4483.2,4483.0,0.0223]
[1758120661327,1.28058048,4483.1,4483.0,0.0223]
[1758120662222,0.4114,4482.4,4482.3,3.2078]
[1758120662428,0.7146,4482.4,4482.3,3.2078]
[1758120662629,1.28043283,4482.4,4482.3,3.2078]
[1758120664330,0.7146,4482.4,4482.3,3.2078]
[1758120665534,0.7146,4482.4,4482.0,0.00661751]
[1758120666342,0.7146,4482.1,4482.0,0.20371751]
[1758120667635,0.7146,4482.1,4482.0,0.00661751]
[1758120668143,0.7146,4482.1,4482.0,0.21861751]
[1758120669438,0.7146,4482.1,4482.0,0.41681751]
[1758120669744,0.5142,4482.1,4482.0,0.73291751]
[1758120670240,0.1219,4483.0,4482.3,0.4102]
[1758120670443,0.1219,4483.0,4482.0,4.10221751]
[1758120670444,0.7091,4482.9,4482.8,0.7263]
[1758120670743,0.7091,4482.9,4482.8,0.4102]
[1758120671940,0.3966,4482.3,4482.2,3.4198]
[1758120672139,0.7091,4482.3,4482.2,3.618]
[1758120672539,0.7091,4482.3,4482.2,3.4198]
[1758120672745,0.7091,4482.3,4482.2,0.212]
[1758120672947,0.7091,4482.3,4482.0,0.00661751]
[1758120673446,0.7091,4482.3,4482.2,0.212]
[1758120673647,0.7091,4482.3,4482.2,0.7263]
[1758120674445,0.7091,4482.3,4482.2,0.212]
[1758120674844,0.7091,4482.3,4482.0,0.00661751]
[1758120675442,0.7091,4482.3,4482.2,0.212]
[1758120676136,0.7091,4482.3,4482.0,0.00661751]
[1758120677551,0.93221,4482.3,4482.0,0.00661751]
[1758120677847,0.7091,4481.9,4481.8,0.1784]
[1758120678238,0.3966,4481.2,4481.1,3.4198]
[1758120678445,0.7091,4481.2,4481.1,3.4198]
[1758120678844,0.7091,4481.2,4481.1,3.618]
[1758120679150,0.7091,4481.2,4481.1,3.9341]
[1758120679346,0.7091,4481.2,4481.1,3.618]
[1758120679652,0.7091,4481.2,4481.1,3.4198]
[1758120680047,0.5081,4481.2,4481.1,3.9341]
[1758120684749,0.7091,4481.2,4481.1,3.618]
[1758120685460,0.7091,4481.2,4481.1,3.2078]
[1758120686654,0.7091,4481.2,4481.1,3.4198]
[1758120686850,0.7091,4481.2,4481.1,0.212]
[1758120687055,0.7091,4481.2,4480.8,0.3161]
[1758120687357,0.5133,4481.0,4480.9,0.212]
[1758120687558,0.5133,4481.0,4480.9,0.3905]
[1758120687758,0.8258,4481.0,4480.9,0.3905]
[1758120687956,0.8258,4481.0,4480.9,0.9048]
[1758120688854,0.7091,4481.0,4480.9,0.9048]
[1758120689548,0.8258,4481.0,4480.9,0.5887]
[1758120690555,0.8258,4481.0,4480.9,0.9048]
[1758120690754,0.7091,4481.0,4480.9,0.9048]
[1758120690954,0.5081,4481.0,4480.9,0.7263]
[1758120691152,0.7091,4481.0,4480.9,0.7263]
[1758120691352,0.8258,4481.0,4480.9,0.7263]
[1758120691554,0.8258,4481.0,4480.9,0.212]
[1758120692353,0.8258,4481.0,4480.9,0.7263]
[1758120692553,0.7091,4481.0,4480.9,0.7263]
[1758120694461,0.5081,4481.0,4480.9,0.7263]
[1758120695062,0.1167,4482.0,4481.4,0.4102]
[1758120695256,0.5133,4482.0,4481.9,0.212]
[1758120695754,0.8258,4482.0,4481.9,0.212]
[1758120695960,0.8258,4482.0,4481.9,0.7263]
[1758120696162,0.5081,4482.0,4481.9,0.7263]
[1758120696357,0.3125,4482.0,4481.9,0.7263]
[1758120696555,0.5081,4482.0,4481.9,0.7263]
[1758120696757,0.2917,4482.4,4482.0,0.3893]
[1758120696957,0.2917,4482.3,4482.2,0.6991]
[1758120697153,0.4864,4482.3,4482.2,0.6991]
[1758120697658,0.3967,4482.3,4482.1,3.2078]
[1758120697857,0.6884,4482.2,4482.0,0.1784]
[1758120698059,0.6884,4482.2,4482.1,0.2022]
[1758120698965,0.6884,4482.2,4482.0,0.1784]
[1758120700264,1.25197496,4482.1,4482.0,0.1784]
[1758120700664,0.6884,4481.7,4481.6,0.2245]
[1758120700958,0.6884,4481.7,4481.6,0.4057]
[1758120701153,0.4864,4481.7,4481.6,0.6991]
[1758120701354,0.2917,4481.9,4481.7,0.2934]
[1758120701559,0.4864,4481.9,4481.8,0.6991]
[1758120702956,3.2078,4482.7,4481.8,0.6991]
[1758120703161,0.2917,4482.9,4482.4,0.2934]
[1758120703362,0.4864,4482.7,4482.6,0.6991]
[1758120704265,3.2078,4483.2,4482.6,0.6991]
[1758120704266,3.2078,4483.2,4482.7,0.2934]
[1758120704563,3.6942,4483.2,4483.1,0.6991]
[1758120704865,3.8962,4483.2,4483.1,0.4057]
[1758120705862,0.1947,4482.7,4482.6,0.6991]
[1758120706055,0.4864,4482.7,4482.6,0.6991]
[1758120706261,0.2917,4482.9,4482.6,0.4057]
[1758120706461,0.8139,4483.0,4482.9,0.4057]
[1758120707259,0.8139,4483.0,4482.5,3.2078]
[1758120707260,0.2917,4482.9,4482.5,3.2078]
[1758120707565,0.8139,4482.5,4482.4,0.1784]
[1758120708066,1.37717781,4482.5,4482.4,0.1784]
[1758120708767,0.3967,4481.5,4481.4,3.6135]
[1758120708962,0.6884,4481.5,4481.4,3.6135]
[1758120709167,0.6884,4481.5,4481.4,3.9069]
[1758120710666,0.8139,4481.0,4480.9,3.2078]
[1758120710971,0.8139,4481.0,4480.9,3.4323]
[1758120711764,0.2917,4481.4,4481.0,0.1196]
[1758120712073,0.4864,4481.9,4481.8,0.4057]
[1758120712371,0.2917,4481.9,4481.8,0.6991]
[1758120712559,0.4864,4481.9,4481.8,0.6991]
[1758120712760,0.2917,4482.4,4481.9,0.2934]
[1758120712965,0.3967,4482.4,4482.3,0.2022]
[1758120713268,0.6884,4482.4,4482.3,0.2022]
[1758120713470,0.6884,4482.4,4482.3,0.4057]
[1758120713970,0.1255,4482.5,4482.4,0.6991]
[1758120713971,0.2917,4482.5,4482.4,0.6991]
[1758120714169,0.4864,4482.5,4482.4,0.6991]
[1758120715370,0.6884,4482.5,4482.4,0.6991]
[1758120715769,0.6442,4483.0,4482.5,0.2934]
[1758120715968,1.0409,4483.0,4482.9,0.2022]
[1758120716165,0.8139,4483.0,4482.9,0.6991]
[1758120716361,0.2917,4483.0,4482.9,0.6991]
[1758120716561,0.2917,4483.3,4483.0,0.4956]
[1758120716764,0.4864,4483.1,4483.0,0.6991]
[1758120717168,0.2924,4483.3,4483.0,0.4057]
[1758120717366,0.4898,4483.2,4483.1,0.71]
[1758120717670,0.3973,4483.2,4483.1,0.207]
[1758120717868,0.3973,4483.2,4483.1,0.4088]
[1758120718067,0.6897,4483.2,4483.1,0.4088]
[1758120718274,0.6897,4483.2,4483.1,0.71]
[1758120718479,0.1284,4483.0,4482.8,3.2078]
[1758120718779,0.6897,4482.9,4482.8,3.4148]
[1758120719273,0.6897,4482.9,4482.8,3.6166]
[1758120719473,0.6897,4482.9,4482.8,3.4148]
[1758120719673,0.6897,4482.9,4482.8,3.2078]
[1758120720270,0.3973,4482.9,4482.3,3.2078]
[1758120720472,0.1974,4482.4,4482.3,3.6166]
[1758120720778,0.6897,4482.4,4482.3,3.6166]
[1758120721075,0.4898,4482.9,4482.8,0.4088]
[1758120721271,0.2924,4483.4,4482.9,0.3012]
[1758120721470,0.4898,4483.4,4483.3,0.71]
[1758120721667,3.3333,4484.0,4483.3,0.71]
[1758120721878,3.5002,4484.0,4483.8,0.4088]
[1758120722078,3.8975,4484.0,4483.9,0.71]
[1758120722278,4.0259,4484.0,4483.9,0.4088]
[1758120723475,3.5002,4484.0,4483.9,0.71]
[1758120723773,3.7335,4484.5,4484.4,0.207]
[1758120723974,0.2924,4484.4,4483.8,3.2078]
[1758120724285,0.6897,4483.9,4483.6,0.227]
[1758120724979,0.6897,4483.9,4483.8,0.207]
[1758120725380,0.6897,4483.9,4483.6,0.227]
[1758120726082,0.6897,4483.9,4483.8,0.207]
[1758120727976,0.6897,4483.9,4483.8,0.407]
[1758120728178,0.6897,4483.9,4483.8,0.7277]
[1758120728880,0.5134,4484.4,4484.3,0.7165]
[1758120729278,0.7269,4484.4,4484.3,0.7165]
[1758120729981,0.3034,4484.9,4484.3,0.3958]
[1758120730176,0.5134,4484.9,4484.8,0.7165]
[1758120730372,0.7269,4484.9,4484.8,0.7165]
[1758120732376,0.226,4485.4,4484.8,3.9243]
[1758120732685,0.5134,4485.4,4485.3,0.7165]
[1758120732983,0.5134,4485.9,4485.8,0.3958]
[1758120733182,0.5134,4485.9,4485.8,3.9243]
[1758120733485,3.46555,4486.8,4485.8,3.9243]
[1758120733486,0.8538,4486.5,4486.4,0.1958]
[1758120733682,0.8538,4486.5,4486.4,0.3958]
[1758120734077,0.8538,4486.5,4486.4,0.7165]
[1758120734781,0.8538,4486.5,4486.4,0.3958]
[1758120735474,0.7269,4485.9,4485.8,3.6296]
[1758120736275,0.7269,4485.9,4485.8,3.8296]
[1758120736484,0.7269,4485.9,4485.8,3.2078]
[1758120737072,0.7269,4485.9,4485.1,0.226]
[1758120737273,0.9529,4485.9,4485.1,0.226]
[1758120738381,0.1269,4486.5,4485.7,3.7243]
[1758120738588,0.3034,4486.4,4486.3,0.7165]
[1758120738885,0.5134,4486.4,4486.3,0.7165]
[1758120740586,0.25775,4486.8,4486.4,0.3207]
[1758120740785,0.98465,4486.8,4486.7,0.3958]
[1758120741787,0.98465,4486.8,4486.7,0.7165]
[1758120742190,0.25775,4486.8,4486.7,3.9243]
[1758120742491,0.4303,4487.5,4487.4,0.7165]
[1758120742791,0.3034,4487.7,4487.5,0.3207]
[1758120742993,0.3034,4487.7,4487.6,0.7165]
[1758120743288,0.7269,4487.3,4487.2,3.2078]
[1758120745699,0.7269,4487.3,4487.2,3.4036]
[1758120746497,0.21,4486.7,4486.6,3.2078]
[1758120746699,0.1269,4486.5,4486.0,0.226]
[1758120747003,0.21,4486.5,4486.4,0.7165]
[1758120747300,0.5134,4486.5,4486.4,0.7165]
[1758120747607,0.8538,4486.5,4486.4,3.9243]
[1758120748109,0.7269,4486.5,4486.4,3.9243]
[1758120749398,0.4303,4487.0,4486.4,3.6036]
[1758120749706,0.8538,4487.0,4486.9,0.7165]
[1758120750003,0.7269,4487.0,4486.9,0.7165]
[1758120750408,0.8538,4487.0,4486.9,0.3958]
[1758120750797,0.8538,4487.0,4486.9,0.7165]
[1758120751508,0.8538,4487.0,4486.9,0.3958]
[1758120755410,0.8538,4487.0,4486.9,0.1958]
[1758120755411,1.41480102,4487.0,4486.9,0.1958]
[1758120755706,1.41480102,4487.0,4486.7,0.0222]
[1758120755902,0.4235,4486.8,4486.7,0.0222]
[1758120756105,0.7269,4486.8,4486.7,0.218]
[1758120756307,1.28821518,4486.8,4486.7,0.218]
[1758120756506,1.28821518,4486.8,4486.7,0.418]
[1758120757705,1.28821518,4486.8,4486.7,0.218]
[1758120758111,1.28821518,4486.8,4486.7,0.7161]
[1758120758908,0.3123,4487.3,4487.2,0.4149]
[1758120759212,0.3529,4487.5,4487.3,0.2966]
[1758120759213,0.2117,4487.4,4487.3,0.2966]
[1758120759503,0.524,4487.4,4487.3,0.7115]
[1758120760811,3.6199,4487.8,4487.7,0.4149]
[1758120761209,3.9322,4487.8,4487.7,0.4149]
[1758120762009,0.7244,4487.8,4487.7,0.4149]
[1758120762212,0.7244,4487.8,4487.7,0.7115]
[1758120764710,0.4121,4487.8,4487.4,3.2078]
[1758120764911,0.8488,4487.5,4487.4,3.2078]
[1758120765116,0.8488,4487.5,4487.4,3.6227]
[1758120765412,0.7244,4487.5,4487.4,3.9193]
[1758120766012,0.1269,4488.0,4487.4,3.9193]